bitfinex-derivatives/quotes_BTCF0:USTF0_20241029
["timestamp","ask_amount","ask_price","bid_price","bid_amount"]
[1730191963823,0.002,71199.0,71198.0,0.65199655]
[1730191964618,0.002,71199.0,71198.0,0.53365294]
[1730191965624,0.002,71199.0,71198.0,0.4342577]
[1730191966015,0.03641262,71199.0,71198.0,0.37226096]
[1730191966326,0.03641262,71199.0,71198.0,0.4342577]
[1730191967833,0.03641262,71199.0,71198.0,0.7950577]
[1730191968029,0.03641262,71199.0,71198.0,0.4342577]
[1730191968328,0.03641262,71199.0,71198.0,0.7950577]
[1730191973024,0.002,71199.0,71198.0,0.7950577]
[1730191973427,0.07954668,71199.0,71198.0,0.7950577]
[1730191973735,0.002,71199.0,71198.0,0.89342416]
[1730191975526,0.002,71199.0,71198.0,0.80126416]
[1730191975833,0.002,71199.0,71198.0,0.80302191]
[1730191976334,0.002,71199.0,71198.0,0.7950577]
[1730191978927,0.002,71199.0,71198.0,0.96310372]
[1730191979128,0.002,71199.0,71198.0,0.86501865]
[1730191979329,0.002,71199.0,71198.0,0.96308601]
[1730191979729,0.002,71199.0,71198.0,0.86501865]
[1730191980632,0.07954883,71199.0,71198.0,0.86501865]
[1730191980828,0.07954883,71199.0,71198.0,0.7950577]
[1730191986833,0.07954883,71199.0,71198.0,0.7028977]
[1730191987034,0.07954883,71199.0,71198.0,0.7949777]
[1730191987229,0.07954883,71199.0,71198.0,0.64090096]
[1730191988549,0.07954883,71199.0,71198.0,0.57062196]
[1730191988737,0.002,71199.0,71198.0,0.66867437]
[1730191989237,0.002,71199.0,71198.0,0.66869674]
[1730191990240,0.002,71199.0,71198.0,0.66869834]
[1730191991241,0.002,71199.0,71198.0,0.30789834]
[1730191992144,0.002,71199.0,71198.0,0.37817734]
[1730191992939,0.002,71199.0,71198.0,0.28010096]
[1730191998552,0.002,71199.0,71198.0,0.3420977]
[1730192004160,0.0795527,71199.0,71198.0,0.3420977]
[1730192004665,0.07955271,71199.0,71198.0,0.3420977]
[1730192010569,0.002,71199.0,71198.0,0.3420977]
[1730192024081,0.002,71199.0,71198.0,0.28010096]
[1730192026885,0.03641536,71199.0,71198.0,0.28010096]
[1730192027080,0.14154941,71199.0,71198.0,0.28010096]
[1730192028969,0.14154969,71199.0,71198.0,0.28010096]
[1730192033888,0.14154975,71199.0,71198.0,0.28010096]
[1730192034784,0.07955301,71199.0,71198.0,0.28010096]
[1730192038685,0.14154975,71199.0,71198.0,0.28010096]
[1730192038997,0.14154975,71199.0,71192.0,0.02537514]
[1730192038998,0.070282,71195.0,71192.0,0.02537514]
[1730192039292,0.00012996,71193.0,71190.0,0.070286]
[1730192039588,0.0621267,71191.0,71190.0,0.28155757]
[1730192039789,0.13968132,71191.0,71190.0,0.28155757]
[1730192040090,0.07768458,71191.0,71190.0,0.13228374]
[1730192041694,0.00012996,71191.0,71190.0,0.34741437]
[1730192041998,0.00112996,71191.0,71190.0,0.34741437]
[1730192042484,0.00112996,71191.0,71190.0,0.34841437]
[1730192042682,0.00212996,71191.0,71190.0,0.34841437]
[1730192044284,0.00212996,71191.0,71190.0,0.28641763]
[1730192045190,0.00212996,71191.0,71190.0,0.16943225]
[1730192046886,0.00212996,71191.0,71190.0,0.28616552]
[1730192047094,0.00212996,71191.0,71190.0,0.16943225]
[1730192050190,0.00012996,71193.0,71192.0,0.070285]
[1730192050392,0.00012996,71193.0,71192.0,0.60015001]
[1730192050589,0.00025966,71193.0,71192.0,0.72704496]
[1730192050895,0.00025966,71193.0,71192.0,2.22704496]
[1730192051499,0.00125966,71193.0,71192.0,2.22804496]
[1730192051690,0.00225966,71193.0,71192.0,2.22804496]
[1730192051890,0.00225966,71193.0,71192.0,2.09394691]
[1730192052299,0.00225966,71193.0,71192.0,2.09394334]
[1730192054092,0.00225966,71193.0,71192.0,2.18590334]
[1730192054898,0.00225966,71193.0,71192.0,2.18212407]
[1730192055290,0.00225966,71193.0,71192.0,2.18212392]
[1730192056504,0.00225966,71193.0,71192.0,2.12012718]
[1730192056799,0.00225966,71193.0,71192.0,2.0340272]
[1730192056996,0.0461,71203.0,71192.0,2.38355027]
[1730192057299,0.07754779,71202.0,71201.0,0.13227274]
[1730192057899,0.07754779,71202.0,71201.0,0.070276]
[1730192058197,0.07754779,71202.0,71201.0,0.13227274]
[1730192059998,0.07754779,71202.0,71201.0,0.13427274]
[1730192061206,0.07754774,71202.0,71201.0,0.13427274]
[1730192062907,0.07754774,71202.0,71201.0,0.072276]
[1730192063205,0.07754774,71202.0,71201.0,0.13427274]
[1730192063806,0.10809674,71203.0,71202.0,0.070275]
[1730192064210,0.10822591,71203.0,71202.0,0.11252515]
[1730192064401,0.04622917,71203.0,71202.0,0.07058467]
[1730192066101,0.04622917,71203.0,71202.0,0.07258467]
[1730192069398,0.10822591,71203.0,71202.0,0.07258467]
[1730192070806,0.10822591,71203.0,71202.0,0.11451901]
[1730192071601,0.10822591,71203.0,71202.0,0.07258467]
[1730192071909,0.18629391,71203.0,71202.0,0.03180322]
[1730192075712,0.18610308,71203.0,71202.0,0.03180322]
[1730192078818,0.10822591,71203.0,71202.0,0.08774124]
[1730192079409,0.04622917,71203.0,71202.0,0.03180322]
[1730192083824,0.11650317,71203.0,71202.0,0.00230967]
[1730192084020,0.04622917,71203.0,71202.0,0.07258467]
[1730192086621,0.10822591,71203.0,71202.0,0.07258467]
[1730192088112,0.10822591,71203.0,71202.0,0.00230967]
[1730192088113,0.17849991,71203.0,71202.0,0.00230967]
[1730192088620,0.17849991,71203.0,71202.0,0.05833037]
[1730192090026,0.10822591,71203.0,71202.0,0.05833037]
[1730192090615,0.10822591,71203.0,71202.0,0.12860537]
[1730192092018,0.10822591,71203.0,71202.0,0.07258467]
[1730192093823,0.18746829,71203.0,71202.0,0.07258467]
[1730192095128,0.18744767,71203.0,71202.0,0.07258467]
[1730192098030,0.23785053,71203.0,71202.0,0.07258467]
[1730192098222,0.18744767,71203.0,71202.0,0.07258467]
[1730192098734,0.12545093,71203.0,71202.0,0.07258467]
[1730192100935,0.04622917,71203.0,71202.0,0.07258467]
[1730192101737,0.10822591,71203.0,71202.0,0.07258467]
[1730192103635,0.04622917,71203.0,71202.0,0.07258467]
[1730192104331,0.04622917,71203.0,71202.0,0.13458141]
[1730192106839,0.04622917,71203.0,71202.0,0.19060112]
[1730192108930,0.126838,71203.0,71202.0,0.02207482]
[1730192109935,0.126838,71203.0,71202.0,0.09234982]
[1730192112543,0.080738,71203.0,71202.0,0.09234982]
[1730192115031,0.04326377,71203.0,71202.0,0.09234982]
[1730192115232,0.03632056,71203.0,71202.0,0.09234982]
[1730192115441,0.1414519,71203.0,71202.0,0.070275]
[1730192116147,0.06212591,71203.0,71202.0,0.12629471]
[1730192122939,0.06212591,71203.0,71202.0,0.070275]
[1730192124146,0.14270276,71203.0,71201.0,0.02562499]
[1730192124345,0.13099931,71202.0,71201.0,0.070276]
[1730192124546,0.08070699,71202.0,71201.0,0.070276]
[1730192125643,0.08070699,71202.0,71201.0,0.071276]
[1730192126344,0.08070699,71202.0,71201.0,0.072276]
[1730192127344,0.00013014,71202.0,71201.0,0.072276]
[1730192127543,0.08003149,71202.0,71201.0,0.072276]
[1730192130446,0.08003149,71202.0,71201.0,0.000476]
[1730192130447,0.14202823,71202.0,71201.0,0.000476]
[1730192130645,0.14202823,71202.0,71187.0,0.00210694]
[1730192130646,0.070287,71191.0,71187.0,0.00210694]
[1730192130851,0.06199674,71188.0,71187.0,0.00210694]
[1730192131152,0.06212688,71188.0,71187.0,0.16679022]
[1730192131348,0.13241588,71188.0,71187.0,0.00210694]
[1730192131751,0.54556362,71188.0,71181.0,0.06999979]
[1730192131953,0.070296,71181.0,71180.0,0.8481661]
[1730192132149,0.070296,71181.0,71180.0,0.90313455]
[1730192132456,0.07042614,71181.0,71180.0,0.8471661]
[1730192133554,0.11502614,71181.0,71180.0,0.8471661]
[1730192133764,0.11602614,71181.0,71180.0,0.8471661]
[1730192139255,0.11602614,71181.0,71180.0,0.889036]
[1730192142258,0.11602614,71181.0,71180.0,0.8471661]
[1730192146665,0.1531801,71181.0,71180.0,0.8471661]
[1730192151170,0.15319625,71181.0,71180.0,0.8471661]
[1730192151365,0.11602614,71181.0,71180.0,0.8471661]
[1730192155057,0.11602614,71181.0,71180.0,0.90313455]
[1730192155967,0.11602614,71181.0,71180.0,0.8471661]
[1730192156170,0.11602614,71181.0,71180.0,0.90313455]
[1730192157072,0.11602614,71181.0,71180.0,0.8471661]
[1730192160075,0.53750614,71181.0,71180.0,0.74159714]
[1730192160575,0.53750614,71181.0,71180.0,0.68560652]
[1730192161276,0.61782321,71181.0,71180.0,0.68560652]
[1730192162874,0.96825331,71181.0,71180.0,0.15093964]
[1730192163073,0.96825331,71181.0,71153.0,0.0478]
[1730192163074,0.070316,71160.0,71159.0,0.070317]
[1730192163271,0.070321,71155.0,71154.0,0.0448]
[1730192163474,0.53027771,71155.0,71154.0,0.0448]
[1730192163668,0.53040785,71155.0,71154.0,0.115122]
[1730192163869,0.52812988,71155.0,71154.0,0.115122]
[1730192164270,0.52812988,71155.0,71144.0,0.0461]
[1730192164271,0.45780888,71155.0,71144.0,0.10809674]
[1730192164570,0.06199674,71150.0,71149.0,0.070327]
[1730192164974,0.00013014,71155.0,71154.0,0.070322]
[1730192165166,0.03503388,71155.0,71154.0,0.13231874]
[1730192165365,0.001,71160.0,71158.0,0.070318]
[1730192165663,0.001,71160.0,71159.0,0.22501374]
[1730192165870,0.03629731,71160.0,71159.0,0.22501374]
[1730192166170,0.3608,71162.0,71161.0,0.070315]
[1730192166466,0.39605014,71162.0,71161.0,0.070315]
[1730192167876,0.36092961,71162.0,71161.0,0.070315]
[1730192168470,0.36092961,71162.0,71161.0,0.071315]
[1730192168668,0.36192961,71162.0,71161.0,0.071315]
[1730192168874,0.36292961,71162.0,71161.0,0.071315]
[1730192169270,0.36292961,71162.0,71161.0,0.16660209]
[1730192170186,0.36292961,71162.0,71161.0,0.26238276]
[1730192170881,0.36292961,71162.0,71161.0,0.19240399]
[1730192173075,0.36292961,71162.0,71161.0,0.26237633]
[1730192173478,0.36292961,71162.0,71161.0,0.19240399]
[1730192173670,0.36292961,71162.0,71161.0,0.26237707]
[1730192175270,0.00212961,71162.0,71161.0,0.61396399]
[1730192175470,0.00210836,71170.0,71169.0,0.070308]
[1730192175780,0.00223771,71170.0,71169.0,0.22754222]
[1730192177887,0.00223771,71170.0,71169.0,0.23054222]
[1730192177888,0.00423771,71170.0,71169.0,0.23054222]
[1730192178274,0.00423771,71170.0,71169.0,0.25638085]
[1730192182979,0.00423771,71170.0,71169.0,0.2564099]
[1730192184269,0.03976096,71170.0,71169.0,0.04889343]
[1730192184475,0.08291597,71170.0,71169.0,0.11920143]
[1730192185182,0.08291597,71170.0,71169.0,0.09945587]
[1730192187671,0.08291597,71170.0,71169.0,0.02914787]
[1730192187672,0.21412595,71170.0,71169.0,0.02914787]
[1730192187869,0.26455224,71170.0,71169.0,0.02914787]
[1730192188773,0.19424524,71170.0,71169.0,0.09945587]
[1730192188972,0.08182221,71170.0,71169.0,0.16145261]
[1730192190277,0.07971385,71170.0,71169.0,0.37242293]
[1730192191384,0.07971385,71170.0,71169.0,0.58236731]
[1730192191385,0.00212935,71170.0,71169.0,0.58236731]
[1730192191684,0.070297,71180.0,71177.0,0.070299]
[1730192191886,0.070297,71180.0,71178.0,0.09577922]
[1730192192183,0.070297,71180.0,71179.0,0.09608908]
[1730192192378,0.070297,71180.0,71179.0,0.09600892]
[1730192192882,0.071297,71180.0,71179.0,0.09600892]
[1730192193685,0.072297,71180.0,71179.0,0.09600892]
[1730192194184,0.072297,71180.0,71179.0,0.09900892]
[1730192194980,0.071297,71180.0,71179.0,0.09900892]
[1730192195180,0.072297,71180.0,71179.0,0.10100892]
[1730192196884,0.072297,71180.0,71179.0,0.00530986]
[1730192198386,0.0703,71177.0,71171.0,0.06999086]
[1730192198580,0.072297,71180.0,71171.0,0.06999086]
[1730192198581,0.13230174,71172.0,71171.0,0.06999086]
[1730192198780,0.13243179,71172.0,71171.0,0.06999086]
[1730192199389,0.070308,71168.0,71165.0,0.070311]
[1730192199583,0.49310674,71166.0,71165.0,0.070311]
[1730192199788,0.070311,71165.0,71164.0,0.00210753]
[1730192199978,0.19833091,71165.0,71164.0,0.00210753]
[1730192200181,0.19846191,71165.0,71164.0,0.00210753]
[1730192200688,0.19846222,71165.0,71164.0,0.00210753]
[1730192200881,0.19846222,71165.0,71164.0,0.00510753]
[1730192200882,0.19946222,71165.0,71164.0,0.00510753]
[1730192201487,0.24496222,71165.0,71164.0,0.00510753]
[1730192201891,0.24496867,71165.0,71164.0,0.00510753]
[1730192202289,0.24596867,71165.0,71164.0,0.00510753]
[1730192202590,0.1955363,71165.0,71164.0,0.00510753]
[1730192205585,0.24596936,71165.0,71164.0,0.00510753]
[1730192206287,0.117942,71165.0,71164.0,0.10122777]
[1730192206595,0.117942,71165.0,71164.0,0.17126085]
[1730192206783,0.117942,71165.0,71164.0,0.0751516]
[1730192207388,0.117942,71165.0,71164.0,0.00510753]
[1730192208393,0.117942,71165.0,71164.0,0.0751516]
[1730192209894,0.047631,71165.0,71164.0,0.0751516]
[1730192210095,0.047631,71165.0,71164.0,0.17158266]
[1730192210996,0.002131,71165.0,71164.0,0.17158266]
[1730192211300,0.002131,71165.0,71164.0,0.21798266]
[1730192213386,0.03656391,71165.0,71164.0,0.12181953]
[1730192215301,0.07972214,71165.0,71164.0,0.12181953]
[1730192215493,0.03656391,71165.0,71164.0,0.12181953]
[1730192216305,0.03656304,71165.0,71164.0,0.12181953]
[1730192220400,0.002131,71165.0,71164.0,0.18381627]
[1730192220602,0.03656217,71165.0,71164.0,0.3787793]
[1730192220794,0.03656217,71165.0,71164.0,0.4705793]
[1730192221400,0.002131,71165.0,71164.0,0.65053122]
[1730192221597,0.002131,71165.0,71164.0,0.56656591]
[1730192225504,0.002131,71165.0,71164.0,0.68094053]
[1730192228508,0.002131,71165.0,71164.0,0.4705793]
[1730192229107,0.002131,71165.0,71164.0,0.3787793]
[1730192229901,0.002131,71165.0,71164.0,0.37667177]
[1730192233100,0.002131,71165.0,71164.0,0.119712]
[1730192245827,0.002131,71165.0,71164.0,0.21572319]
[1730192246122,0.002131,71165.0,71164.0,0.33016485]
[1730192248817,0.002131,71165.0,71164.0,0.28376485]
[1730192249125,0.002131,71165.0,71164.0,0.073312]
[1730192250825,0.002131,71165.0,71164.0,0.28365444]
[1730192252942,0.03670621,71165.0,71164.0,0.073312]
[1730192253139,0.07986297,71165.0,71164.0,0.073312]
[1730192255436,0.07985175,71165.0,71164.0,0.073312]
[1730192257444,0.00013005,71172.0,71171.0,0.070306]
[1730192257647,0.05042315,71188.0,71180.0,0.070296]
[1730192257848,0.0472,71194.0,71185.0,0.06199674]
[1730192257849,0.10919674,71194.0,71185.0,0.06199674]
[1730192258041,0.10919674,71194.0,71186.0,0.06199674]
[1730192258239,0.10919674,71194.0,71189.0,0.06199674]
[1730192258240,0.0472,71194.0,71189.0,0.06199674]
[1730192258443,0.0472,71194.0,71193.0,0.070284]
[1730192258642,0.10919674,71194.0,71193.0,0.070284]
[1730192258843,0.10919674,71194.0,71189.0,0.06199674]
[1730192259044,0.10919674,71194.0,71187.0,0.431089]
[1730192259349,0.00113022,71188.0,71187.0,0.431089]
[1730192260148,0.3608,71210.0,71188.0,0.4214]
[1730192260339,0.04723014,71208.0,71202.0,0.06199674]
[1730192260949,0.04723014,71208.0,71201.0,0.070276]
[1730192261144,0.06199674,71204.0,71201.0,0.070276]
[1730192261338,0.0001297,71202.0,71200.0,0.45252]
[1730192261543,0.06199674,71201.0,71200.0,0.45252]
[1730192261754,0.06212644,71201.0,71200.0,0.45252]
[1730192261952,0.06212644,71201.0,71200.0,0.47736382]
[1730192263552,0.06212644,71201.0,71200.0,0.47836382]
[1730192264051,0.06212644,71201.0,71200.0,0.47736382]
[1730192264354,0.06212644,71201.0,71200.0,0.47936382]
[1730192265553,0.0001297,71201.0,71200.0,0.54136056]
[1730192266850,0.0001297,71201.0,71200.0,0.02684382]
[1730192266851,0.0704057,71201.0,71200.0,0.02684382]
[1730192267945,0.08050161,71201.0,71197.0,0.06524234]
[1730192268150,0.070278,71199.0,71198.0,0.06199674]
[1730192268445,0.15064991,71199.0,71198.0,0.06199674]
[1730192269251,0.15164991,71199.0,71198.0,0.06299674]
[1730192270954,0.15164991,71199.0,71198.0,0.06699674]
[1730192272854,0.08137191,71199.0,71198.0,0.13727574]
[1730192273056,0.08137191,71199.0,71198.0,0.34803764]
[1730192273353,0.13177807,71199.0,71198.0,0.25533227]
[1730192273859,0.13177807,71199.0,71198.0,0.32561127]
[1730192274558,0.13004409,71199.0,71198.0,0.32561127]
[1730192275152,0.13004409,71199.0,71198.0,0.26361453]
[1730192275958,0.001,71199.0,71198.0,0.26361453]
[1730192278064,0.001,71199.0,71198.0,0.41729127]
[1730192279059,0.001,71199.0,71198.0,0.32561127]
[1730192279256,0.001,71199.0,71198.0,0.41729127]
[1730192282770,0.0001297,71202.0,71201.0,0.070276]
[1730192282952,0.0001297,71202.0,71198.0,0.7224825]
[1730192282953,0.12948559,71202.0,71198.0,0.7224825]
[1730192283165,0.00025914,71202.0,71201.0,2.05327947]
[1730192283461,0.12949199,71202.0,71201.0,1.63258177]
[1730192283760,0.31139757,71202.0,71201.0,2.05451502]
[1730192283974,0.12949199,71202.0,71201.0,0.42224228]
[1730192284461,0.07909295,71202.0,71201.0,0.28049284]
[1730192285755,0.07909295,71202.0,71201.0,0.37217284]
[1730192285962,0.07909295,71202.0,71201.0,0.37317284]
[1730192286665,0.07909295,71202.0,71201.0,0.28149284]
[1730192287058,0.17361544,71202.0,71201.0,0.00130903]
[1730192287767,0.17233334,71202.0,71201.0,0.00130903]
[1730192287967,0.22273238,71202.0,71201.0,0.00130903]
[1730192288961,0.12820989,71202.0,71201.0,0.00130903]
[1730192289162,0.07781085,71202.0,71201.0,0.00130903]
[1730192289963,0.12820989,71202.0,71198.0,0.27400038]
[1730192290270,0.00013133,71199.0,71198.0,0.34427938]
[1730192290570,0.12808208,71199.0,71198.0,0.55444303]
[1730192290974,0.00013133,71199.0,71198.0,0.55444303]
[1730192291464,0.00113133,71199.0,71198.0,0.55444303]
[1730192292866,0.00113133,71199.0,71198.0,0.55544303]
[1730192293571,0.00113133,71199.0,71198.0,0.55844303]
[1730192295369,0.00113133,71199.0,71198.0,0.28444265]
[1730192297959,0.07868365,71199.0,71198.0,0.05677334]
[1730192298563,0.07868365,71199.0,71198.0,0.12705234]
[1730192303663,0.07868365,71199.0,71198.0,0.22157483]
[1730192303875,0.11815672,71199.0,71198.0,0.76897925]
[1730192304171,0.00025914,71202.0,71201.0,0.070276]
[1730192304373,0.00025914,71202.0,71201.0,0.522716]
[1730192304566,0.0003902,71202.0,71201.0,0.73244409]
[1730192304968,0.0003902,71202.0,71201.0,0.64080409]
[1730192305475,0.0003902,71202.0,71201.0,0.28100409]
[1730192307780,0.0003902,71202.0,71201.0,0.34303339]
[1730192308373,0.0003902,71202.0,71201.0,0.70383339]
[1730192308771,0.0003902,71202.0,71201.0,0.75997299]
[1730192309573,0.0003902,71202.0,71201.0,0.69794369]
[1730192309775,0.0003902,71202.0,71201.0,0.70383339]
[1730192313470,0.0003902,71202.0,71201.0,0.34303339]
[1730192313675,0.0003902,71202.0,71201.0,0.28100409]
[1730192314681,0.1326945,71202.0,71201.0,0.28100409]
[1730192315877,0.1326945,71202.0,71201.0,0.001]
[1730192316084,0.1326945,71202.0,71201.0,0.071276]
[1730192316979,0.0624195,71202.0,71201.0,0.11329463]
[1730192319485,0.0624195,71202.0,71201.0,0.071276]
[1730192319986,0.4232195,71202.0,71201.0,0.071276]
[1730192320190,0.0624195,71202.0,71201.0,0.071276]
[1730192320486,0.4232195,71202.0,71201.0,0.071276]
[1730192320996,0.19038255,71202.0,71201.0,0.071276]
[1730192321295,0.50077506,71202.0,71201.0,0.071276]
[1730192322388,0.55118255,71202.0,71201.0,0.071276]
[1730192322796,0.19038255,71202.0,71201.0,0.071276]
[1730192322994,0.55118255,71202.0,71201.0,0.071276]
[1730192323893,0.55118255,71202.0,71201.0,0.04585011]
[1730192324292,0.19038255,71202.0,71201.0,0.04585011]
[1730192324590,0.55118255,71202.0,71201.0,0.04585011]
[1730192324989,0.19038255,71202.0,71201.0,0.04585011]
[1730192325197,0.55118255,71202.0,71201.0,0.04585011]
[1730192325590,0.62145755,71202.0,71201.0,0.04585011]
[1730192325900,0.62145755,71202.0,71201.0,0.02963461]
[1730192326091,0.62145756,71202.0,71201.0,0.02963461]
[1730192327791,0.26065756,71202.0,71201.0,0.02963461]
[1730192327997,0.4934945,71202.0,71201.0,0.02963461]
[1730192328197,0.4232195,71202.0,71201.0,0.02963461]
[1730192330199,0.4934945,71202.0,71201.0,0.02963461]
[1730192330500,0.4934945,71202.0,71198.0,0.04200663]
[1730192330501,0.070277,71200.0,71198.0,0.04200663]
[1730192330693,0.070282,71195.0,71194.0,0.04200663]
[1730192330893,0.0620293,71195.0,71193.0,0.04200663]
[1730192331207,0.070286,71192.0,71190.0,0.1264256]
[1730192331505,0.07041706,71191.0,71190.0,0.33728156]
[1730192331998,0.00013106,71191.0,71190.0,0.1264256]
[1730192332203,0.00013106,71191.0,71190.0,0.34289155]
[1730192332392,0.00013106,71191.0,71190.0,0.34389155]
[1730192332902,0.00113106,71191.0,71190.0,0.42572492]
[1730192333103,0.00113106,71191.0,71190.0,0.36958532]
[1730192333603,0.00113106,71191.0,71190.0,0.30755602]
[1730192333804,0.07141706,71191.0,71190.0,0.36958532]
[1730192334001,0.00113106,71191.0,71190.0,0.36958532]
[1730192334195,0.00213106,71191.0,71190.0,0.37358532]
[1730192335103,0.00213106,71191.0,71190.0,0.30329932]
[1730192335605,0.00213106,71191.0,71190.0,0.37358632]
[1730192336104,0.03655131,71191.0,71190.0,0.37358632]
[1730192336300,0.03655131,71191.0,71190.0,0.30329932]
[1730192336606,0.03655131,71191.0,71190.0,0.37358632]
[1730192343106,0.00213106,71191.0,71190.0,0.47279911]
[1730192343310,0.00013106,71195.0,71190.0,1.24989973]
[1730192343503,0.00012917,71203.0,71198.0,0.070279]
[1730192343810,0.0002616,71199.0,71198.0,0.89582798]
[1730192344005,0.0002616,71199.0,71198.0,2.81718798]
[1730192344310,0.00012917,71203.0,71201.0,0.070276]
[1730192344612,0.00012917,71203.0,71201.0,0.38135568]
[1730192344814,0.00012917,71203.0,71201.0,0.44338498]
[1730192344815,0.00052023,71202.0,71201.0,0.44338498]
[1730192345513,0.00052023,71202.0,71201.0,0.44538498]
[1730192346407,0.00052023,71202.0,71201.0,0.44638498]
[1730192346607,0.00052023,71202.0,71201.0,0.46827229]
[1730192347014,0.07079523,71202.0,71201.0,0.39799629]
[1730192347213,0.07079523,71202.0,71201.0,0.31407968]
[1730192348707,0.07079523,71202.0,71201.0,0.28481571]
[1730192349009,0.07079523,71202.0,71201.0,0.21486689]
[1730192349209,0.07079523,71202.0,71201.0,0.0286467]
[1730192351396,0.07079523,71202.0,71201.0,0.003]
[1730192354306,0.07079523,71202.0,71201.0,0.34639521]
[1730192354307,0.00052023,71202.0,71201.0,0.34639521]
[1730192354804,0.00052023,71202.0,71201.0,1.84639521]
[1730192355413,0.00052023,71202.0,71201.0,1.93803521]
[1730192356523,0.00052023,71202.0,71201.0,0.43803521]
[1730192356701,0.00052023,71202.0,71201.0,0.47997824]
[1730192357313,0.00052023,71202.0,71201.0,0.43803521]
[1730192359709,0.03493383,71202.0,71201.0,0.43803521]
[1730192364015,0.00052023,71202.0,71201.0,0.43803521]
[1730192367823,0.00052023,71202.0,71201.0,0.21408991]
[1730192368013,0.07079523,71202.0,71201.0,0.21408991]
[1730192368207,0.07079523,71202.0,71201.0,0.003]
[1730192369725,0.43159523,71202.0,71201.0,0.003]
[1730192373324,0.50915681,71202.0,71201.0,0.003]
[1730192376125,0.14835681,71202.0,71201.0,0.003]
[1730192376429,0.50915681,71202.0,71201.0,0.003]
[1730192376827,0.50915681,71202.0,71201.0,0.073276]
[1730192377919,0.50915672,71202.0,71201.0,0.073276]
[1730192380127,0.43159523,71202.0,71201.0,0.073276]
[1730192381226,0.07079523,71202.0,71201.0,0.073276]
[1730192381530,0.43159523,71202.0,71201.0,0.073276]
[1730192382223,0.43146553,71202.0,71201.0,0.073276]
[1730192388123,0.47460721,71202.0,71201.0,0.073276]
[1730192388429,0.55943676,71202.0,71201.0,0.04550637]
[1730192391028,0.50902605,71202.0,71197.0,0.02580717]
[1730192391233,0.1323083,71198.0,71197.0,0.070279]
[1730192391429,0.20999885,71198.0,71197.0,0.070279]
[1730192392232,0.20999885,71198.0,71197.0,0.071279]
[1730192392729,0.21099885,71198.0,71197.0,0.071279]
[1730192393232,0.21099885,71198.0,71197.0,0.073279]
[1730192393441,0.57179885,71198.0,71197.0,0.073279]
[1730192395038,0.50976955,71198.0,71197.0,0.073279]
[1730192395232,0.07140903,71198.0,71197.0,0.073279]
[1730192395736,0.43220903,71198.0,71197.0,0.073279]
[1730192396638,0.43220903,71198.0,71197.0,0.04496389]
[1730192397535,0.49423833,71198.0,71197.0,0.04496389]
[1730192397939,0.49423833,71198.0,71197.0,0.003]
[1730192398238,0.91559833,71198.0,71197.0,0.003]
[1730192398938,0.94049357,71198.0,71197.0,0.003]
[1730192400942,0.45710427,71198.0,71197.0,0.003]
[1730192401153,0.43220903,71198.0,71197.0,0.07328]
[1730192401446,0.3608,71214.0,71207.0,0.07027]
[1730192401649,0.3608,71214.0,71204.0,0.04200014]
[1730192401650,0.070272,71205.0,71204.0,0.04200014]
[1730192401832,0.070272,71205.0,71204.0,0.17430244]
[1730192402036,0.070272,71205.0,71204.0,0.17461309]
[1730192402441,0.07040077,71205.0,71204.0,0.07058365]
[1730192402933,0.07140077,71205.0,71204.0,0.07058365]
[1730192403252,0.14895077,71205.0,71201.0,0.3608]
[1730192403541,0.14895077,71205.0,71203.0,0.070274]
[1730192403542,0.19822688,71204.0,71203.0,0.070274]
[1730192403739,0.147823,71204.0,71203.0,0.070274]
[1730192404539,0.147823,71204.0,71203.0,0.04317874]
[1730192405947,0.148823,71204.0,71203.0,0.04317874]
[1730192408545,0.509623,71204.0,71203.0,0.04317874]
[1730192408743,0.56002688,71204.0,71203.0,0.04317874]
[1730192409142,0.48975388,71204.0,71196.0,0.0916]
[1730192409343,0.001,71204.0,71203.0,0.070274]
[1730192409542,0.0354128,71204.0,71203.0,0.070274]
[1730192409945,0.07854691,71204.0,71203.0,0.070274]
[1730192410350,0.001,71204.0,71203.0,0.070274]
[1730192411651,0.00012877,71205.0,71204.0,0.070273]
[1730192411951,0.00025846,71205.0,71204.0,0.070273]
[1730192414349,0.00125846,71205.0,71204.0,0.070273]
[1730192415155,0.07353046,71205.0,71204.0,0.070273]
[1730192415353,0.070276,71201.0,71200.0,0.431075]
[1730192415552,0.070276,71201.0,71200.0,0.45645768]
[1730192415747,0.070276,71201.0,71200.0,0.30515006]
[1730192416345,0.07040569,71201.0,71200.0,0.30515006]
[1730192416860,0.07040569,71201.0,71200.0,0.30715006]
[1730192417656,0.3608,71209.0,71200.0,0.30715006]
[1730192417657,0.3608,71224.0,71201.0,0.72132]
[1730192417846,0.070258,71220.0,71218.0,0.070259]
[1730192418042,0.070258,71220.0,71219.0,0.070258]
[1730192419980,0.083258,71220.0,71219.0,0.070258]
[1730192421779,0.096258,71220.0,71219.0,0.070258]
[1730192423964,0.096258,71220.0,71219.0,0.09582992]
[1730192425361,0.22419585,71220.0,71211.0,0.070266]
[1730192425564,0.096258,71220.0,71219.0,0.070258]
[1730192425755,0.22419613,71220.0,71219.0,0.07056941]
[1730192425956,0.22419613,71220.0,71219.0,0.00031141]
[1730192426253,0.22419607,71220.0,71219.0,0.00031141]
[1730192426449,0.21119607,71220.0,71219.0,0.00031141]
[1730192426859,0.22419607,71220.0,71219.0,0.07056941]
[1730192428652,0.21119607,71220.0,71219.0,0.07056941]
[1730192428851,0.22419607,71220.0,71219.0,0.07056941]
[1730192433158,0.1737984,71220.0,71219.0,0.07056941]
[1730192433364,0.096258,71220.0,71219.0,0.07056941]
[1730192433767,0.457058,71220.0,71219.0,0.07056941]
[1730192434670,0.457058,71220.0,71219.0,0.13258432]
[1730192435061,0.457058,71220.0,71219.0,0.15742095]
[1730192442565,0.457058,71220.0,71219.0,0.09540604]
[1730192443573,0.457058,71220.0,71219.0,0.02514804]
[1730192443781,0.49146903,71220.0,71219.0,0.00031141]
[1730192444278,0.49146983,71220.0,71219.0,0.00031141]
[1730192444471,0.42121183,71220.0,71201.0,0.3285]
[1730192444776,0.06201491,71211.0,71209.0,0.070267]
[1730192444975,0.126167,71210.0,71209.0,0.070267]
[1730192446582,0.132167,71210.0,71209.0,0.070267]
[1730192447275,0.132167,71210.0,71209.0,0.13228191]
[1730192448072,0.139167,71210.0,71209.0,0.13228191]
[1730192448263,0.0689,71210.0,71209.0,0.13228191]
[1730192448469,0.1464477,71210.0,71208.0,0.06201491]
[1730192448681,0.12795009,71209.0,71208.0,0.13228391]
[1730192448872,0.00012937,71209.0,71208.0,0.13228391]
[1730192449074,0.07767448,71209.0,71208.0,0.34234188]
[1730192450373,0.08267448,71209.0,71208.0,0.34234188]